[Event "Late-Titled-Tuesday-Blitz-April-02-2024"]
[Site "Chess.com"]
[Date "2024.04.02"]
[Round "8"]
[White "tgpgoat"]
[Black "chess_sharparchitect"]
[Result "1-0"]
[WhiteElo "2437"]
[BlackElo "2290"]
[TimeControl "180+1"]
[EndTime "15:27:27 PDT"]
[Termination "tgpgoat won on time"]

1. Nf3 {[%clk 0:03:00.9]} 1... d5 {[%clk 0:02:57.5]} 2. b3 {[%clk 0:02:59.9]}
2... c5 {[%clk 0:02:56.7]} 3. Bb2 {[%clk 0:02:59.7]} 3... Nc6 {[%clk 0:02:57]}
4. e3 {[%clk 0:02:58.3]} 4... e6 {[%clk 0:02:52.1]} 5. Bb5 {[%clk 0:02:58.7]}
5... Bd7 {[%clk 0:02:50.3]} 6. O-O {[%clk 0:02:57]} 6... Nf6 {[%clk 0:02:50.2]}
7. Bxc6 {[%clk 0:02:56.8]} 7... Bxc6 {[%clk 0:02:50]} 8. Ne5 {[%clk 0:02:57.5]}
8... Rc8 {[%clk 0:02:48.6]} 9. c4 {[%clk 0:02:57.4]} 9... d4 {[%clk 0:02:40]}
10. Nxc6 {[%clk 0:02:56.2]} 10... Rxc6 {[%clk 0:02:39.7]} 11. Na3 {[%clk
0:02:52.4]} 11... e5 {[%clk 0:02:37.8]} 12. exd4 {[%clk 0:02:49.6]} 12... exd4
{[%clk 0:02:34.2]} 13. Re1+ {[%clk 0:02:49.4]} 13... Be7 {[%clk 0:02:34.5]} 14.
b4 {[%clk 0:02:49.8]} 14... b6 {[%clk 0:02:22.3]} 15. Qa4 {[%clk 0:02:43.9]}
15... Qd7 {[%clk 0:02:17.2]} 16. Rxe7+ {[%clk 0:02:41.8]} 16... Kxe7 {[%clk
0:02:15]} 17. Re1+ {[%clk 0:02:42.2]} 17... Kf8 {[%clk 0:02:10.3]} 18. bxc5
{[%clk 0:02:41.9]} 18... bxc5 {[%clk 0:02:08.3]} 19. Nb5 {[%clk 0:02:37.4]}
19... a6 {[%clk 0:02:03.7]} 20. Nxd4 {[%clk 0:01:57.1]} 20... cxd4 {[%clk
0:01:59]} 21. Bxd4 {[%clk 0:01:46]} 21... h5 {[%clk 0:01:41]} 22. h3 {[%clk
0:01:24.5]} 22... Rh6 {[%clk 0:01:40.5]} 23. Bc5+ {[%clk 0:01:19.2]} 23... Rxc5
{[%clk 0:01:34.6]} 24. Qb4 {[%clk 0:01:19.7]} 24... Qd6 {[%clk 0:01:23.3]} 25.
d4 {[%clk 0:01:20.3]} 25... Rc6 {[%clk 0:01:19.7]} 26. c5 {[%clk 0:01:20.6]}
26... Qc7 {[%clk 0:01:15.6]} 27. Qd2 {[%clk 0:01:12.4]} 27... Nd5 {[%clk
0:01:12.1]} 28. Qg5 {[%clk 0:01:10.3]} 28... Rce6 {[%clk 0:01:05.2]} 29. Rb1
{[%clk 0:01:08.7]} 29... Nf4 {[%clk 0:00:58.5]} 30. d5 {[%clk 0:01:03.1]} 30...
Ne2+ {[%clk 0:00:55.3]} 31. Kf1 {[%clk 0:01:01.7]} 31... Re5 {[%clk 0:00:54.7]}
32. d6 {[%clk 0:00:52.2]} 32... Rxd6 {[%clk 0:00:20.2]} 33. cxd6 {[%clk
0:00:34.9]} 33... Qxd6 {[%clk 0:00:17.1]} 34. Qh4 {[%clk 0:00:20.5]} 34... Nd4
{[%clk 0:00:16.4]} 35. Rd1 {[%clk 0:00:19.6]} 35... Rd5 {[%clk 0:00:15.8]} 36.
Re1 {[%clk 0:00:19.8]} 36... Ne6 {[%clk 0:00:15.3]} 37. Qa4 {[%clk 0:00:19.3]}
37... Rd2 {[%clk 0:00:14.5]} 38. Kg1 {[%clk 0:00:18.7]} 38... Qd4 {[%clk
0:00:13.1]} 39. Qxd4 {[%clk 0:00:16.2]} 39... Rxd4 {[%clk 0:00:13.1]} 40. Re5
{[%clk 0:00:17]} 40... g6 {[%clk 0:00:12.6]} 41. Ra5 {[%clk 0:00:16.9]} 41...
Rd6 {[%clk 0:00:12.8]} 42. g3 {[%clk 0:00:17.5]} 42... Ke7 {[%clk 0:00:13]} 43.
Kg2 {[%clk 0:00:18]} 43... Kf6 {[%clk 0:00:12.9]} 44. f4 {[%clk 0:00:18.5]}
44... Rb6 {[%clk 0:00:12.7]} 45. Kf3 {[%clk 0:00:18.3]} 45... Nd4+ {[%clk
0:00:12.5]} 46. Ke4 {[%clk 0:00:18.9]} 46... Nc6 {[%clk 0:00:12.2]} 47. Rc5
{[%clk 0:00:18.8]} 47... Nb4 {[%clk 0:00:11.2]} 48. a3 {[%clk 0:00:15.4]} 48...
Na2 {[%clk 0:00:09.9]} 49. Rc2 {[%clk 0:00:14.1]} 49... Rb3 {[%clk 0:00:03.7]}
50. Rxa2 {[%clk 0:00:14.5]} 50... Rxg3 {[%clk 0:00:03.8]} 51. a4 {[%clk
0:00:12.4]} 51... Rxh3 {[%clk 0:00:04.2]} 52. Rb2 {[%clk 0:00:13]} 52... Rc3
{[%clk 0:00:03.8]} 53. Rb6+ {[%clk 0:00:13.1]} 53... Kg7 {[%clk 0:00:03.7]} 54.
Rxa6 {[%clk 0:00:13.5]} 54... h4 {[%clk 0:00:04]} 55. Rd6 {[%clk 0:00:11.3]}
55... Ra3 {[%clk 0:00:04]} 56. Rd1 {[%clk 0:00:05.6]} 56... Rxa4+ {[%clk
0:00:03.6]} 57. Kf3 {[%clk 0:00:06.2]} 57... Ra3+ {[%clk 0:00:01.5]} 58. Kg4
{[%clk 0:00:05.8]} 58... h3 {[%clk 0:00:01.8]} 59. Rh1 {[%clk 0:00:04.6]} 1-0

[Event "Late-Titled-Tuesday-Blitz-April-02-2024"]
[Site "Chess.com"]
[Date "2024.04.02"]
[Round "8"]
[White "Caracal3000"]
[Black "Kirill_Klukin"]
[Result "1/2-1/2"]
[WhiteElo "2552"]
[BlackElo "2779"]
[TimeControl "180+1"]
[EndTime "15:27:30 PDT"]
[Termination "Game drawn by repetition"]

1. e4 {[%clk 0:03:00.9]} 1... c5 {[%clk 0:02:59.8]} 2. Nf3 {[%clk 0:03:00]} 2...
Nc6 {[%clk 0:02:59.9]} 3. Nc3 {[%clk 0:02:59.2]} 3... g6 {[%clk 0:02:58.8]} 4.
d4 {[%clk 0:02:59.5]} 4... cxd4 {[%clk 0:02:59.1]} 5. Nxd4 {[%clk 0:03:00.4]}
5... Bg7 {[%clk 0:02:59.8]} 6. Be3 {[%clk 0:03:01.1]} 6... Nf6 {[%clk
0:03:00.3]} 7. Bc4 {[%clk 0:03:00.6]} 7... O-O {[%clk 0:03:00.8]} 8. Bb3 {[%clk
0:02:59.9]} 8... Re8 {[%clk 0:03:01.1]} 9. O-O {[%clk 0:02:58.1]} 9... d6 {[%clk
0:02:59.6]} 10. h3 {[%clk 0:02:57.6]} 10... Na5 {[%clk 0:02:59.5]} 11. f4 {[%clk
0:02:50.2]} 11... b6 {[%clk 0:02:59.2]} 12. Nd5 {[%clk 0:02:44.7]} 12... Bb7
{[%clk 0:02:50.4]} 13. Nxf6+ {[%clk 0:02:39]} 13... exf6 {[%clk 0:02:50.5]} 14.
Nb5 {[%clk 0:02:25.4]} 14... Nxb3 {[%clk 0:02:47.1]} 15. axb3 {[%clk 0:02:23.3]}
15... Rxe4 {[%clk 0:02:45.7]} 16. Nxd6 {[%clk 0:02:12.7]} 16... Rxe3 {[%clk
0:02:40.4]} 17. Nxb7 {[%clk 0:02:12.2]} 17... Qc7 {[%clk 0:02:39.6]} 18. Nd6
{[%clk 0:02:06.6]} 18... Re6 {[%clk 0:01:51.2]} 19. Nc4 {[%clk 0:01:50.7]} 19...
b5 {[%clk 0:01:51.5]} 20. Na3 {[%clk 0:01:43]} 20... f5 {[%clk 0:01:50.6]} 21.
c3 {[%clk 0:01:35]} 21... b4 {[%clk 0:01:49.1]} 22. cxb4 {[%clk 0:00:53.4]}
22... Bxb2 {[%clk 0:01:45.1]} 23. Ra2 {[%clk 0:00:54]} 23... Bxa3 {[%clk
0:00:39.7]} 24. Rxa3 {[%clk 0:00:53]} 24... Qb6+ {[%clk 0:00:40.4]} 25. Kh1
{[%clk 0:00:43.8]} 25... Qxb4 {[%clk 0:00:40.8]} 26. Ra4 {[%clk 0:00:39.4]}
26... Qc3 {[%clk 0:00:38.3]} 27. Qd5 {[%clk 0:00:36.3]} 27... Qc6 {[%clk
0:00:17.9]} 28. Qxc6 {[%clk 0:00:18.2]} 28... Rxc6 {[%clk 0:00:18.8]} 29. Rfa1
{[%clk 0:00:16.1]} 29... a6 {[%clk 0:00:19]} 30. b4 {[%clk 0:00:16.1]} 30... Rb6
{[%clk 0:00:19.3]} 31. Kh2 {[%clk 0:00:11.7]} 31... Kg7 {[%clk 0:00:19]} 32. g3
{[%clk 0:00:11.2]} 32... h5 {[%clk 0:00:19.1]} 33. h4 {[%clk 0:00:11.7]} 33...
Rd8 {[%clk 0:00:15.6]} 34. Rxa6 {[%clk 0:00:11.8]} 34... Rd2+ {[%clk 0:00:15.1]}
35. Kh3 {[%clk 0:00:11.9]} 35... Rxb4 {[%clk 0:00:15.8]} 36. R6a2 {[%clk
0:00:12]} 36... Rd3 {[%clk 0:00:16.3]} 37. Ra3 {[%clk 0:00:12.4]} 37... Rdd4
{[%clk 0:00:16.9]} 38. R1a2 {[%clk 0:00:12.8]} 38... Rbc4 {[%clk 0:00:17.2]} 39.
Ra1 {[%clk 0:00:13.3]} 39... Rc2 {[%clk 0:00:17.3]} 40. R1a2 {[%clk 0:00:13.3]}
40... Rc1 {[%clk 0:00:17.7]} 41. Ra1 {[%clk 0:00:13.8]} 41... Rc6 {[%clk
0:00:18.2]} 42. R1a2 {[%clk 0:00:14.4]} 42... Rcd6 {[%clk 0:00:18.6]} 43. Ra1
{[%clk 0:00:14.6]} 43... Re6 {[%clk 0:00:18.7]} 44. R1a2 {[%clk 0:00:14.7]}
44... Rde4 {[%clk 0:00:19.2]} 45. Ra1 {[%clk 0:00:15]} 45... Re2 {[%clk
0:00:19.8]} 46. R1a2 {[%clk 0:00:15.5]} 46... Re1 {[%clk 0:00:20.2]} 47. Ra1
{[%clk 0:00:15.9]} 47... R1e4 {[%clk 0:00:20.3]} 48. R1a2 {[%clk 0:00:16.3]}
48... Re8 {[%clk 0:00:20.8]} 49. Ra1 {[%clk 0:00:16.7]} 49... R4e6 {[%clk
0:00:21.5]} 50. R1a2 {[%clk 0:00:17.2]} 50... Kf6 {[%clk 0:00:21.9]} 51. Ra6
{[%clk 0:00:17]} 51... Rxa6 {[%clk 0:00:21.6]} 52. Rxa6+ {[%clk 0:00:17.9]}
52... Re6 {[%clk 0:00:22.3]} 53. Ra2 {[%clk 0:00:17.3]} 53... Rd6 {[%clk
0:00:22.7]} 54. Ra1 {[%clk 0:00:16.9]} 54... Ke6 {[%clk 0:00:22.9]} 55. Re1+
{[%clk 0:00:16.8]} 55... Kd7 {[%clk 0:00:21.4]} 56. Kg2 {[%clk 0:00:16.4]} 56...
Rd2+ {[%clk 0:00:21]} 57. Kf3 {[%clk 0:00:16.9]} 57... Rd3+ {[%clk 0:00:21.6]}
58. Kf2 {[%clk 0:00:17.5]} 58... Kd6 {[%clk 0:00:21.8]} 59. Re8 {[%clk
0:00:17.2]} 59... Ra3 {[%clk 0:00:21.9]} 60. Re1 {[%clk 0:00:16.7]} 60... Kd5
{[%clk 0:00:22]} 61. Re5+ {[%clk 0:00:16]} 61... Kd4 {[%clk 0:00:22.2]} 62. Re7
{[%clk 0:00:16.5]} 62... Ra2+ {[%clk 0:00:20.3]} 63. Kf3 {[%clk 0:00:16.7]}
63... Ra3+ {[%clk 0:00:20.9]} 64. Kf2 {[%clk 0:00:17.2]} 64... Ra2+ {[%clk
0:00:07.5]} 65. Kf3 {[%clk 0:00:17.7]} 65... Ra3+ {[%clk 0:00:07.6]} 66. Kf2
{[%clk 0:00:12.6]} 1/2-1/2

[Event "Late-Titled-Tuesday-Blitz-April-02-2024"]
[Site "Chess.com"]
[Date "2024.04.02"]
[Round "8"]
[White "flawian2008"]
[Black "ArtemDyachuk"]
[Result "1-0"]
[WhiteElo "2566"]
[BlackElo "2776"]
[TimeControl "180+1"]
[EndTime "15:27:32 PDT"]
[Termination "flawian2008 won by resignation"]

1. e4 {[%clk 0:03:00.9]} 1... e5 {[%clk 0:02:59.6]} 2. Nf3 {[%clk 0:03:01.2]}
2... Nc6 {[%clk 0:03:00.1]} 3. Bb5 {[%clk 0:03:01.2]} 3... a6 {[%clk 0:02:59.3]}
4. Ba4 {[%clk 0:03:01.5]} 4... Nf6 {[%clk 0:02:58.9]} 5. d4 {[%clk 0:03:01.6]}
5... exd4 {[%clk 0:02:55.7]} 6. O-O {[%clk 0:03:02]} 6... Be7 {[%clk 0:02:43.9]}
7. Re1 {[%clk 0:03:02]} 7... O-O {[%clk 0:02:39.5]} 8. e5 {[%clk 0:03:00.5]}
8... Nd5 {[%clk 0:02:39.1]} 9. c3 {[%clk 0:03:00.4]} 9... Nb6 {[%clk 0:02:37.9]}
10. Bc2 {[%clk 0:03:01]} 10... d5 {[%clk 0:02:30.8]} 11. cxd4 {[%clk 0:02:58.9]}
11... Re8 {[%clk 0:02:29.1]} 12. a3 {[%clk 0:02:57.1]} 12... Bg4 {[%clk
0:02:25.7]} 13. Qd3 {[%clk 0:02:45.2]} 13... g6 {[%clk 0:02:23.6]} 14. Nbd2
{[%clk 0:02:42.2]} 14... Bf8 {[%clk 0:02:18.6]} 15. Qe3 {[%clk 0:02:33.6]} 15...
Nc8 {[%clk 0:02:12]} 16. h3 {[%clk 0:02:32.8]} 16... Bd7 {[%clk 0:02:10.9]} 17.
Nf1 {[%clk 0:02:27.6]} 17... N8e7 {[%clk 0:02:10.1]} 18. Ng3 {[%clk 0:02:27.6]}
18... Qc8 {[%clk 0:02:03.5]} 19. Qf4 {[%clk 0:02:27]} 19... Nd8 {[%clk
0:01:56.8]} 20. Bd2 {[%clk 0:02:14.1]} 20... Ne6 {[%clk 0:01:55.3]} 21. Qh4
{[%clk 0:02:14.2]} 21... Bg7 {[%clk 0:01:45.4]} 22. Bh6 {[%clk 0:02:13.2]} 22...
Bh8 {[%clk 0:01:42.1]} 23. Rac1 {[%clk 0:02:07.1]} 23... Qd8 {[%clk 0:01:23.7]}
24. Ng5 {[%clk 0:02:04]} 24... Nc6 {[%clk 0:01:20.2]} 25. Ne2 {[%clk 0:01:38.9]}
25... f5 {[%clk 0:01:12.1]} 26. Bb3 {[%clk 0:01:21.2]} 26... Ne7 {[%clk
0:00:59.3]} 27. Nxe6 {[%clk 0:01:18.9]} 27... Bxe6 {[%clk 0:00:59.2]} 28. Nf4
{[%clk 0:01:19.6]} 28... Nc6 {[%clk 0:00:47.6]} 29. Bg5 {[%clk 0:01:18.4]} 29...
Qd7 {[%clk 0:00:47.2]} 30. Red1 {[%clk 0:01:02.3]} 30... Rac8 {[%clk 0:00:34.6]}
31. Rc5 {[%clk 0:00:55.3]} 31... Bg7 {[%clk 0:00:31]} 32. Nxe6 {[%clk
0:00:53.6]} 32... Rxe6 {[%clk 0:00:28.3]} 33. Rxd5 {[%clk 0:00:48.3]} 33... Qe8
{[%clk 0:00:21.8]} 34. Rc5 {[%clk 0:00:47.9]} 34... Kh8 {[%clk 0:00:21.4]} 35.
Bxe6 {[%clk 0:00:47.2]} 35... Qxe6 {[%clk 0:00:22.3]} 36. d5 {[%clk 0:00:47.8]}
36... Qxe5 {[%clk 0:00:22.4]} 37. Qc4 {[%clk 0:00:36.5]} 37... Nd4 {[%clk
0:00:19.5]} 38. Be3 {[%clk 0:00:33.1]} 38... Nb5 {[%clk 0:00:18.4]} 39. a4
{[%clk 0:00:29.7]} 39... Nd6 {[%clk 0:00:17.9]} 40. Rxc7 {[%clk 0:00:28.5]}
40... Re8 {[%clk 0:00:14.2]} 41. Qc3 {[%clk 0:00:20.2]} 41... Ne4 {[%clk
0:00:09]} 42. Qxe5 {[%clk 0:00:20]} 42... Bxe5 {[%clk 0:00:09.9]} 43. Rxb7
{[%clk 0:00:20.4]} 43... Nd6 {[%clk 0:00:08]} 44. Rd7 {[%clk 0:00:20.1]} 44...
Kg8 {[%clk 0:00:07.2]} 45. Bd4 {[%clk 0:00:17.8]} 45... Nc4 {[%clk 0:00:07.2]}
46. Bxe5 {[%clk 0:00:17.1]} 46... Nxe5 {[%clk 0:00:08.1]} 47. Ra7 {[%clk
0:00:17.1]} 47... f4 {[%clk 0:00:06.5]} 48. d6 {[%clk 0:00:17.2]} 48... f3
{[%clk 0:00:07.4]} 49. d7 {[%clk 0:00:16.7]} 49... Rd8 {[%clk 0:00:07.9]} 50.
Rc7 {[%clk 0:00:17]} 50... Kf7 {[%clk 0:00:07.6]} 51. Rc8 {[%clk 0:00:16]} 51...
Rxd7 {[%clk 0:00:07.1]} 52. Rxd7+ {[%clk 0:00:12.8]} 52... Nxd7 {[%clk 0:00:08]}
53. Rc7 {[%clk 0:00:13.5]} 53... Ke6 {[%clk 0:00:08.1]} 54. Rc6+ {[%clk
0:00:13.7]} 54... Kf5 {[%clk 0:00:07.6]} 55. Rxa6 {[%clk 0:00:14.3]} 55... Ne5
{[%clk 0:00:07.5]} 56. Ra5 {[%clk 0:00:14.2]} 56... fxg2 {[%clk 0:00:07.4]} 57.
Rxe5+ {[%clk 0:00:13.7]} 57... Kxe5 {[%clk 0:00:07.6]} 58. a5 {[%clk 0:00:14.5]}
58... Kd6 {[%clk 0:00:08.5]} 59. b4 {[%clk 0:00:14.4]} 59... Kc7 {[%clk
0:00:09.4]} 60. Kxg2 {[%clk 0:00:14.7]} 60... Kb7 {[%clk 0:00:10.3]} 61. Kg3
{[%clk 0:00:15.6]} 61... Ka6 {[%clk 0:00:11]} 62. Kg4 {[%clk 0:00:16.2]} 62...
Kb5 {[%clk 0:00:11.9]} 63. Kg5 {[%clk 0:00:16.9]} 63... Kxb4 {[%clk 0:00:12.3]}
64. a6 {[%clk 0:00:17.6]} 64... Ka5 {[%clk 0:00:13.2]} 65. a7 {[%clk 0:00:18.2]}
1-0

[Event "Late-Titled-Tuesday-Blitz-April-02-2024"]
[Site "Chess.com"]
[Date "2024.04.02"]
[Round "8"]
[White "Meri-Arabidze"]
[Black "AmanteDeMoi"]
[Result "1/2-1/2"]
[WhiteElo "2698"]
[BlackElo "2612"]
[TimeControl "180+1"]
[EndTime "15:27:32 PDT"]
[Termination "Game drawn - insufficient material"]

1. d4 {[%clk 0:03:00.9]} 1... g6 {[%clk 0:02:58.1]} 2. c4 {[%clk 0:03:00.8]}
2... Bg7 {[%clk 0:02:58.2]} 3. g3 {[%clk 0:03:01.5]} 3... d6 {[%clk 0:02:58]} 4.
Bg2 {[%clk 0:03:01.6]} 4... e5 {[%clk 0:02:57.9]} 5. dxe5 {[%clk 0:02:57.4]}
5... dxe5 {[%clk 0:02:58.8]} 6. Qxd8+ {[%clk 0:02:57.1]} 6... Kxd8 {[%clk
0:02:59.7]} 7. Nc3 {[%clk 0:02:57.7]} 7... f6 {[%clk 0:02:59.6]} 8. Be3 {[%clk
0:02:55.4]} 8... c6 {[%clk 0:02:59.8]} 9. O-O-O+ {[%clk 0:02:53.1]} 9... Nd7
{[%clk 0:02:55.5]} 10. Nf3 {[%clk 0:02:21.8]} 10... Bh6 {[%clk 0:02:51.3]} 11.
Bxh6 {[%clk 0:02:19.1]} 11... Nxh6 {[%clk 0:02:52.2]} 12. Nd2 {[%clk 0:02:13.7]}
12... Ke7 {[%clk 0:02:51.6]} 13. Nde4 {[%clk 0:02:10.9]} 13... Nf7 {[%clk
0:02:50.8]} 14. g4 {[%clk 0:01:57.1]} 14... Nf8 {[%clk 0:02:36.2]} 15. h3 {[%clk
0:01:43.1]} 15... Be6 {[%clk 0:02:36]} 16. Nc5 {[%clk 0:01:40.3]} 16... Rb8
{[%clk 0:02:31.5]} 17. b3 {[%clk 0:01:31.2]} 17... Nd7 {[%clk 0:02:24.7]} 18.
Nxe6 {[%clk 0:01:28.5]} 18... Kxe6 {[%clk 0:02:25.6]} 19. Rd2 {[%clk 0:01:19.8]}
19... Rbd8 {[%clk 0:02:24.8]} 20. Rhd1 {[%clk 0:01:05]} 20... Nc5 {[%clk
0:02:24.6]} 21. b4 {[%clk 0:01:04.6]} 21... Rxd2 {[%clk 0:02:23.5]} 22. Rxd2
{[%clk 0:01:04.6]} 22... Nd7 {[%clk 0:02:09.8]} 23. c5 {[%clk 0:01:01.7]} 23...
a5 {[%clk 0:01:43.2]} 24. a3 {[%clk 0:01:00.4]} 24... axb4 {[%clk 0:01:43.6]}
25. axb4 {[%clk 0:01:01.3]} 25... Ra8 {[%clk 0:01:44]} 26. Kb2 {[%clk
0:01:00.9]} 26... Rd8 {[%clk 0:01:40.4]} 27. e3 {[%clk 0:00:47.6]} 27... f5
{[%clk 0:01:33.3]} 28. Bf1 {[%clk 0:00:45.8]} 28... Ke7 {[%clk 0:01:28.1]} 29.
gxf5 {[%clk 0:00:41.8]} 29... gxf5 {[%clk 0:01:27.8]} 30. Bc4 {[%clk 0:00:42.4]}
30... Nb6 {[%clk 0:01:13.2]} 31. Rxd8 {[%clk 0:00:41.7]} 31... Nxc4+ {[%clk
0:01:13.1]} 32. Kb3 {[%clk 0:00:42.3]} 32... Nxd8 {[%clk 0:00:59]} 33. Kxc4
{[%clk 0:00:42.5]} 33... Kf6 {[%clk 0:00:51.1]} 34. f4 {[%clk 0:00:18.6]} 34...
exf4 {[%clk 0:00:52]} 35. exf4 {[%clk 0:00:19.4]} 35... Ne6 {[%clk 0:00:43.3]}
36. Ne2 {[%clk 0:00:20]} 36... Kg6 {[%clk 0:00:43.3]} 37. b5 {[%clk 0:00:16.1]}
37... Kf6 {[%clk 0:00:31.1]} 38. bxc6 {[%clk 0:00:14.2]} 38... bxc6 {[%clk
0:00:32]} 39. Nd4 {[%clk 0:00:12]} 39... Nxf4 {[%clk 0:00:26]} 40. Nxc6 {[%clk
0:00:11.3]} 40... Nxh3 {[%clk 0:00:25.9]} 41. Nd4 {[%clk 0:00:11.3]} 41... Nf4
{[%clk 0:00:18.2]} 42. c6 {[%clk 0:00:11.3]} 42... Ke5 {[%clk 0:00:09.2]} 43. c7
{[%clk 0:00:07.1]} 43... Nd5 {[%clk 0:00:09.1]} 44. c8=N {[%clk 0:00:02.9]}
44... f4 {[%clk 0:00:06.4]} 45. Nf3+ {[%clk 0:00:03]} 45... Ke4 {[%clk
0:00:03.8]} 46. Ng5+ {[%clk 0:00:03.6]} 46... Ke3 {[%clk 0:00:04.1]} 47. Kxd5
{[%clk 0:00:03.4]} 47... h6 {[%clk 0:00:04.2]} 48. Nh3 {[%clk 0:00:03.6]} 48...
f3 {[%clk 0:00:04.4]} 49. Nd6 {[%clk 0:00:03.4]} 49... f2 {[%clk 0:00:04.3]} 50.
Nxf2 {[%clk 0:00:03.5]} 50... Kxf2 {[%clk 0:00:04.2]} 51. Nf5 {[%clk 0:00:04.2]}
51... h5 {[%clk 0:00:04.3]} 52. Ke5 {[%clk 0:00:04.8]} 52... Kf3 {[%clk
0:00:04.5]} 53. Kf6 {[%clk 0:00:04.2]} 53... Kg4 {[%clk 0:00:05.4]} 54. Kg6
{[%clk 0:00:04.3]} 54... Kf4 {[%clk 0:00:05.8]} 55. Kxh5 {[%clk 0:00:04.2]}
1/2-1/2

[Event "Late-Titled-Tuesday-Blitz-April-02-2024"]
[Site "Chess.com"]
[Date "2024.04.02"]
[Round "8"]
[White "yobdc"]
[Black "ural58"]
[Result "1-0"]
[WhiteElo "2595"]
[BlackElo "2474"]
[TimeControl "180+1"]
[EndTime "15:27:35 PDT"]
[Termination "yobdc won by resignation"]

1. e4 {[%clk 0:03:00.9]} 1... d5 {[%clk 0:02:58.4]} 2. exd5 {[%clk 0:03:00.9]}
2... Qxd5 {[%clk 0:02:58.1]} 3. Nc3 {[%clk 0:03:01.8]} 3... Qd6 {[%clk
0:02:57.9]} 4. d4 {[%clk 0:03:00.6]} 4... c6 {[%clk 0:02:57.8]} 5. Nf3 {[%clk
0:02:58.2]} 5... Bf5 {[%clk 0:02:57.3]} 6. Ne5 {[%clk 0:02:55.2]} 6... Nd7
{[%clk 0:02:54.9]} 7. Bf4 {[%clk 0:02:55.3]} 7... Nxe5 {[%clk 0:02:54.4]} 8.
Bxe5 {[%clk 0:02:48.3]} 8... Qd7 {[%clk 0:02:52.7]} 9. Bd3 {[%clk 0:02:36.3]}
9... Nf6 {[%clk 0:02:50.8]} 10. Bxf6 {[%clk 0:02:35.6]} 10... gxf6 {[%clk
0:02:47.2]} 11. Bxf5 {[%clk 0:02:26.8]} 11... Qxf5 {[%clk 0:02:46]} 12. Qe2
{[%clk 0:02:24.2]} 12... O-O-O {[%clk 0:02:44.2]} 13. O-O-O {[%clk 0:02:23.9]}
13... Bh6+ {[%clk 0:02:43.2]} 14. Kb1 {[%clk 0:02:23.9]} 14... e5 {[%clk
0:02:41.8]} 15. d5 {[%clk 0:02:22.4]} 15... Qd7 {[%clk 0:02:23.8]} 16. Qc4
{[%clk 0:02:15.6]} 16... Kb8 {[%clk 0:02:18.2]} 17. dxc6 {[%clk 0:02:10.2]}
17... Qxc6 {[%clk 0:02:18.3]} 18. Qxc6 {[%clk 0:02:08.9]} 18... bxc6 {[%clk
0:02:17.1]} 19. Rxd8+ {[%clk 0:02:07.2]} 19... Rxd8 {[%clk 0:02:16.4]} 20. Rd1
{[%clk 0:02:08.1]} 20... Rxd1+ {[%clk 0:02:13.4]} 21. Nxd1 {[%clk 0:02:07.8]}
21... f5 {[%clk 0:02:12.9]} 22. c3 {[%clk 0:01:56.9]} 22... Kc7 {[%clk
0:02:12.8]} 23. Kc2 {[%clk 0:01:56.7]} 23... Kd6 {[%clk 0:02:12.7]} 24. Kd3
{[%clk 0:01:53.5]} 24... Bc1 {[%clk 0:02:10.7]} 25. b4 {[%clk 0:01:52]} 25... a6
{[%clk 0:02:09.8]} 26. f3 {[%clk 0:01:48.1]} 26... c5 {[%clk 0:02:08.4]} 27. Kc4
{[%clk 0:01:36.4]} 27... cxb4 {[%clk 0:02:08]} 28. cxb4 {[%clk 0:01:37.3]} 28...
Ba3 {[%clk 0:01:52.3]} 29. Ne3 {[%clk 0:01:30]} 29... f4 {[%clk 0:01:48.1]} 30.
Nc2 {[%clk 0:01:04.5]} 30... Bb2 {[%clk 0:01:47.9]} 31. a4 {[%clk 0:01:01.5]}
31... f5 {[%clk 0:01:47.1]} 32. b5 {[%clk 0:00:44.1]} 32... axb5+ {[%clk
0:01:46.9]} 33. Kxb5 {[%clk 0:00:42.8]} 33... e4 {[%clk 0:01:46.9]} 34. Kc4
{[%clk 0:00:36.9]} 34... Bf6 {[%clk 0:01:40.5]} 35. a5 {[%clk 0:00:33.9]} 35...
Bd8 {[%clk 0:01:37.9]} 36. a6 {[%clk 0:00:33.7]} 36... Bb6 {[%clk 0:01:34.8]}
37. Nb4 {[%clk 0:00:25.9]} 37... e3 {[%clk 0:01:23.5]} 38. Kd3 {[%clk 0:00:20]}
38... Kc5 {[%clk 0:01:21.7]} 39. Na2 {[%clk 0:00:13.4]} 39... Kb5 {[%clk
0:01:21]} 40. Nc3+ {[%clk 0:00:12.1]} 40... Kxa6 {[%clk 0:01:20.9]} 41. Nd5
{[%clk 0:00:12.4]} 41... Kb5 {[%clk 0:01:08.2]} 42. Nxf4 {[%clk 0:00:12.6]}
42... Kc6 {[%clk 0:01:05.1]} 43. g3 {[%clk 0:00:13]} 43... Kd6 {[%clk
0:01:04.2]} 44. Ng2 {[%clk 0:00:13.2]} 44... h5 {[%clk 0:00:50.2]} 45. Nxe3
{[%clk 0:00:12.9]} 45... Ke6 {[%clk 0:00:38.7]} 46. Ng2 {[%clk 0:00:11.7]} 46...
Bg1 {[%clk 0:00:37.6]} 47. h3 {[%clk 0:00:10.6]} 47... Bh2 {[%clk 0:00:36.4]}
48. Nf4+ {[%clk 0:00:10.3]} 48... Ke5 {[%clk 0:00:35.5]} 49. Nxh5 {[%clk
0:00:10.3]} 49... Kd5 {[%clk 0:00:26.9]} 50. g4 {[%clk 0:00:08.2]} 50... Ke5
{[%clk 0:00:26]} 51. Ke3 {[%clk 0:00:06.2]} 51... Bg1+ {[%clk 0:00:23.1]} 52.
Ke2 {[%clk 0:00:06.6]} 52... fxg4 {[%clk 0:00:22.6]} 53. hxg4 {[%clk 0:00:05.3]}
53... Bb6 {[%clk 0:00:22.2]} 54. Kd3 {[%clk 0:00:03.9]} 54... Ba7 {[%clk
0:00:21.7]} 55. Ke2 {[%clk 0:00:03.4]} 55... Bg1 {[%clk 0:00:20]} 56. Ng3 {[%clk
0:00:03.6]} 56... Kf4 {[%clk 0:00:19.6]} 57. Ne4 {[%clk 0:00:04.5]} 57... Bd4
{[%clk 0:00:18.7]} 58. Nd2 {[%clk 0:00:04.5]} 58... Bc3 {[%clk 0:00:18.3]} 59.
Nb3 {[%clk 0:00:04.5]} 59... Bb2 {[%clk 0:00:15.5]} 60. Nc5 {[%clk 0:00:04.6]}
60... Bg7 {[%clk 0:00:13.4]} 61. Nd3+ {[%clk 0:00:04.9]} 61... Kg5 {[%clk
0:00:12.4]} 62. Kf2 {[%clk 0:00:05.3]} 62... Bf8 {[%clk 0:00:11.5]} 63. Kg3
{[%clk 0:00:05.7]} 63... Bd6+ {[%clk 0:00:11.8]} 64. f4+ {[%clk 0:00:06.1]}
64... Kg6 {[%clk 0:00:12.4]} 65. Kf3 {[%clk 0:00:05.8]} 65... Bc5 {[%clk
0:00:12.4]} 66. Nxc5 {[%clk 0:00:05.4]} 1-0